bitfinex-derivatives/quotes_ETHF0:USTF0_20241105
["timestamp","ask_amount","ask_price","bid_price","bid_amount"]
[1730820193583,3.2078,2450.2,2449.6,3.2078]
[1730820193889,3.11604,2450.2,2449.6,3.2078]
[1730820194078,4.0816,2450.1,2449.6,3.2078]
[1730820194279,6.744,2450.1,2448.8,7.12643466]
[1730820194479,40.8,2449.6,2449.3,3.2078]
[1730820194787,40.8,2449.6,2449.4,3.91863466]
[1730820194986,3.61598,2450.5,2449.4,10.29003466]
[1730820195186,3.61598,2450.5,2450.0,3.2078]
[1730820195187,0.40818,2450.5,2450.0,3.2078]
[1730820195383,2.5832,2450.6,2450.0,3.2078]
[1730820195781,2.6624,2450.7,2450.0,3.2078]
[1730820196079,41.20819,2450.5,2450.2,3.2078]
[1730820196387,0.40821,2450.4,2449.8,3.2078]
[1730820196583,40.8,2450.5,2449.5,2.7827]
[1730820196584,40.8,2450.5,2450.1,3.2078]
[1730820196776,44.0078,2450.5,2449.8,3.2078]
[1730820197090,44.0078,2450.5,2448.1,1.05012096]
[1730820197091,0.40852,2448.5,2448.1,1.05012096]
[1730820197277,0.40852,2448.5,2446.9,6.30072578]
[1730820197278,1.88112341,2448.6,2447.9,4.78298144]
[1730820197479,1.88112341,2448.6,2447.9,3.2078]
[1730820197687,6.7006,2448.5,2447.9,3.2078]
[1730820197982,6.7006,2448.5,2447.0,9.46345768]
[1730820197983,0.4086,2448.0,2447.3,3.2078]
[1730820198186,3.2078,2448.3,2447.6,3.2078]
[1730820198385,3.2078,2448.4,2447.6,3.2078]
[1730820198577,3.61638,2448.1,2447.6,3.2078]
[1730820198888,3.2078,2448.1,2447.5,3.2078]
[1730820199188,0.4086,2448.0,2447.5,3.2078]
[1730820199392,0.40862,2447.9,2447.5,3.2078]
[1730820199579,3.2078,2448.1,2447.5,3.2078]
[1730820199988,40.8,2448.2,2447.8,3.2078]
[1730820200581,0.40861,2448.0,2447.8,3.2078]
[1730820200790,0.40858,2448.1,2447.8,3.2078]
[1730820200988,40.8,2448.2,2447.8,3.2078]
[1730820201190,0.4086,2448.0,2447.8,3.2078]
[1730820201390,40.8,2448.2,2447.8,7.61855768]
[1730820201988,0.40858,2448.1,2447.8,3.2078]
[1730820202488,40.8,2448.2,2447.8,3.2078]
[1730820202690,0.40858,2448.1,2447.8,3.2078]
[1730820203086,40.8,2448.2,2447.8,3.2078]
[1730820203287,0.40858,2448.1,2447.8,3.2078]
[1730820203493,41.20856,2448.2,2447.8,3.2078]
[1730820203788,0.40856,2448.2,2447.8,3.2078]
[1730820203995,3.2078,2448.0,2447.4,3.2078]
[1730820204182,7.61855768,2447.7,2446.1,3.2078]
[1730820204386,0.40883,2446.6,2446.1,3.2078]
[1730820204581,2.3908,2447.2,2445.9,5.4784]
[1730820204784,0.40882,2446.7,2446.4,3.2078]
[1730820205089,0.40884,2446.5,2446.4,3.2078]
[1730820205592,0.40886,2446.4,2446.0,3.2078]
[1730820205890,40.8,2446.5,2446.3,3.2078]
[1730820206083,0.40888,2446.3,2446.1,3.2078]
[1730820206286,40.8,2446.5,2445.8,3.2078]
[1730820206490,0.40892,2446.1,2445.9,3.2078]
[1730820206878,0.40893,2446.0,2445.9,3.2078]
[1730820207084,0.40892,2446.1,2445.9,3.2078]
[1730820207288,0.40893,2446.0,2445.9,3.2078]
[1730820207688,0.40893,2446.0,2445.0,0.40909]
[1730820207689,0.40896,2445.9,2445.6,3.2078]
[1730820207987,43.4979,2446.5,2445.6,3.2078]
[1730820208186,0.40896,2445.9,2445.6,3.2078]
[1730820208492,43.4979,2446.5,2445.6,3.2078]
[1730820208690,0.40893,2446.0,2445.6,3.2078]
[1730820208886,0.40889,2446.3,2445.9,3.2078]
[1730820209089,5.9448,2446.6,2445.9,3.2078]
[1730820209302,3.2078,2446.9,2446.3,3.2078]
[1730820209602,6.0255,2447.2,2446.3,3.2078]
[1730820209781,0.4088,2446.8,2446.7,3.2078]
[1730820209986,6.0255,2447.2,2446.7,3.2078]
[1730820210293,4.0864,2447.1,2446.5,3.2078]
[1730820210591,0.40879,2446.9,2446.5,3.2078]
[1730820210886,6.0255,2447.2,2446.5,3.2078]
[1730820210887,0.40882,2446.7,2446.5,3.2078]
[1730820211088,3.2078,2447.2,2446.5,3.2078]
[1730820211288,0.40878,2446.9,2446.8,3.2078]
[1730820211693,4.49598,2446.9,2446.8,3.2078]
[1730820212507,0.40878,2446.9,2446.8,3.2078]
[1730820212992,2.7722,2447.4,2446.8,3.2078]
[1730820213394,0.40878,2446.9,2446.8,3.2078]
[1730820213895,2.7722,2447.4,2446.8,7.295]
[1730820214088,3.2078,2447.5,2446.9,3.2078]
[1730820214288,0.40876,2447.0,2446.9,3.2078]
[1730820214592,0.40875,2447.1,2446.9,3.2078]
[1730820215293,0.40874,2447.2,2446.9,7.2942]
[1730820215489,40.8,2447.7,2447.0,4.0864]
[1730820215690,0.40867,2447.6,2447.4,3.2078]
[1730820215888,0.40866,2447.7,2447.4,3.2078]
[1730820216092,0.40865,2447.7,2447.4,3.2078]
[1730820216291,40.8,2448.2,2447.4,3.2078]
[1730820216690,0.40865,2447.7,2447.4,3.2078]
[1730820216887,0.40862,2447.9,2447.5,0.40868]
[1730820217093,5.4817,2448.5,2446.8,7.8614]
[1730820217094,0.40859,2448.1,2447.7,8.02719768]
[1730820217295,0.40859,2448.1,2448.0,3.2078]
[1730820217900,0.40859,2448.1,2448.0,7.2926]
[1730820218297,0.40859,2448.1,2448.0,3.2078]
[1730820219101,40.8,2448.8,2448.0,7.2926]
[1730820219302,40.8,2448.8,2448.3,3.2078]
[1730820219600,0.40853,2448.4,2448.3,3.2078]
[1730820220296,0.40857,2448.2,2448.0,3.2078]
[1730820220701,41.82116,2448.8,2448.0,3.2078]
[1730820220902,0.40854,2448.4,2448.3,3.2078]
[1730820222195,0.40849,2448.6,2448.3,3.61633]
[1730820222504,0.40853,2448.4,2448.3,3.2078]
[1730820223306,0.40852,2448.5,2448.3,3.2078]
[1730820223494,40.8,2448.8,2448.3,3.2078]
[1730820223696,0.40853,2448.4,2448.3,3.2078]
[1730820224192,40.8,2448.8,2448.3,3.2078]
[1730820224193,0.40852,2448.5,2448.3,3.2078]
[1730820224399,0.40853,2448.4,2448.3,3.2078]
[1730820225901,4.084,2448.4,2448.0,3.2078]
[1730820226207,41.82117,2448.8,2448.0,3.2078]
[1730820226208,0.40856,2448.2,2448.0,3.2078]
[1730820226602,40.8,2448.8,2448.2,0.40856]
[1730820226902,0.40852,2448.5,2448.3,3.2078]
[1730820227098,0.40853,2448.4,2448.3,3.2078]
[1730820227511,40.8,2448.8,2448.3,3.2078]
[1730820227698,0.40852,2448.5,2448.3,3.61634]
[1730820227900,0.40853,2448.4,2448.3,3.2078]
[1730820228103,0.40852,2448.5,2448.3,3.2078]
[1730820228412,40.8,2448.8,2448.3,3.61634]
[1730820228413,0.4085,2448.6,2448.3,3.61634]
[1730820228597,0.40851,2448.6,2448.3,3.61634]
[1730820228795,40.8,2448.8,2448.3,3.2078]
[1730820229503,40.8,2448.8,2448.6,3.2078]
[1730820229504,0.40848,2448.7,2448.6,3.2078]
[1730820230603,4.084,2448.7,2448.3,3.2078]
[1730820230803,0.40853,2448.4,2448.3,3.2078]
[1730820231906,40.8,2448.8,2448.3,3.2078]
[1730820232216,0.40852,2448.5,2448.3,3.2078]
[1730820232597,0.40853,2448.4,2448.3,3.2078]
[1730820232805,0.40852,2448.5,2448.3,3.2078]
[1730820233098,0.40853,2448.4,2448.3,3.2078]
[1730820233299,40.8,2448.8,2448.3,3.2078]
[1730820233600,0.40852,2448.5,2448.3,3.2078]
[1730820234104,0.40852,2448.5,2448.3,7.2918]
[1730820234307,40.8,2448.8,2448.3,7.2918]
[1730820234612,40.8,2448.8,2448.6,3.2078]
[1730820234901,40.8,2448.8,2448.6,3.61629]
[1730820234902,41.20847,2448.8,2448.6,3.61629]
[1730820235102,0.40845,2448.9,2448.7,0.40847]
[1730820235308,0.40847,2448.8,2448.6,3.61629]
[1730820235512,0.40845,2448.9,2448.6,3.2078]
[1730820235704,0.40847,2448.8,2448.6,3.61628]
[1730820236208,41.20845,2448.9,2448.7,0.40848]
[1730820236505,40.8,2448.9,2448.6,3.2078]
[1730820236701,0.40847,2448.8,2448.6,3.2078]
[1730820236900,0.40846,2448.8,2448.6,3.61628]
[1730820237106,41.20845,2448.9,2448.7,0.40847]
[1730820237509,40.8,2448.9,2448.8,4.49246]
[1730820237712,40.8,2448.9,2448.8,0.40846]
[1730820237906,40.8,2448.9,2448.8,4.49166]
[1730820238108,3.61870829,2449.6,2448.8,4.0832]
[1730820238307,0.40838,2449.3,2449.2,3.2078]
[1730820238617,41.20838,2449.3,2449.2,3.2078]
[1730820239304,5.3192,2449.7,2449.2,7.291]
[1730820239504,2.6232,2450.6,2449.6,4.41075768]
[1730820239703,2.6232,2450.6,2449.5,3.2078]
[1730820239704,5.831,2450.6,2449.8,3.2078]
[1730820239908,0.40828,2449.9,2449.8,3.2078]
[1730820240303,0.40836,2449.5,2449.4,3.2078]
[1730820240606,0.40834,2449.5,2449.4,3.2078]
[1730820240911,40.8,2449.5,2449.4,7.2902]
[1730820241214,5.525,2449.8,2449.4,7.2902]
[1730820241412,5.525,2449.8,2449.4,3.2078]
[1730820241604,0.40834,2449.6,2449.4,3.2078]
[1730820241803,40.8,2449.7,2449.4,3.2078]
[1730820242815,40.8,2449.7,2449.6,0.40833]
[1730820243113,5.9065,2450.5,2449.6,4.0824]
[1730820243114,2.6987,2450.5,2449.6,4.0824]
[1730820243315,0.40814,2450.7,2450.2,3.2078]
[1730820243615,40.8,2450.6,2450.5,3.2078]
[1730820243914,3.2078,2451.6,2450.5,7.61855768]
[1730820244114,0.40806,2451.2,2451.1,3.2078]
[1730820244414,0.40804,2451.4,2451.1,3.2078]
[1730820244812,0.40806,2451.2,2451.1,3.2078]
[1730820245211,4.07996,2451.2,2451.1,3.2078]
[1730820245512,40.8,2451.5,2450.5,9.97125768]
[1730820245513,40.8,2451.5,2450.5,7.13205768]
[1730820245717,0.40807,2451.2,2451.1,3.2078]
[1730820245915,0.40812,2450.9,2450.6,3.2078]
[1730820246314,0.40809,2451.1,2450.6,3.2078]
[1730820246509,0.40808,2451.1,2451.0,3.2078]
[1730820247917,4.08,2451.1,2450.4,3.2078]
[1730820248222,4.08,2451.1,2450.0,2.8392]
[1730820248223,0.40813,2450.8,2450.7,3.2078]
[1730820248423,5.5675,2451.0,2450.4,3.2078]
[1730820248620,0.40818,2450.5,2450.4,3.2078]
[1730820249021,0.40828,2449.9,2449.8,2.284]
[1730820249221,4.22822,2450.6,2449.7,3.2078]
[1730820249526,0.40826,2450.0,2449.7,3.2078]
[1730820249728,0.40829,2449.8,2449.7,3.2078]
[1730820249914,0.40828,2449.9,2449.7,3.2078]
[1730820250223,0.40829,2449.8,2449.7,3.2078]
[1730820250727,3.2078,2450.6,2449.7,7.2902]
[1730820250921,40.8,2450.4,2449.7,3.2078]
[1730820251120,0.40826,2450.0,2449.7,3.2078]
[1730820251422,0.40826,2450.0,2449.6,5.89173]
[1730820251423,0.40826,2450.0,2449.9,3.2078]
[1730820251611,0.40826,2450.0,2449.6,8.6912]
[1730820251814,0.40825,2450.1,2449.9,3.2078]
[1730820252023,0.40826,2450.0,2449.9,3.2078]
[1730820252322,40.8,2450.4,2449.9,3.2078]
[1730820252716,0.40822,2450.3,2449.9,8.02682768]
[1730820252913,40.8,2450.4,2449.9,7.61855768]
[1730820253726,0.40822,2450.3,2449.9,7.61855768]
[1730820254022,0.40823,2450.2,2449.9,7.61855768]
[1730820254324,40.8,2450.4,2449.9,8.02683768]
[1730820254325,0.40822,2450.3,2449.9,8.02683768]
[1730820254628,5.5675,2451.0,2450.2,7.61855768]
[1730820254629,8.7753,2451.0,2450.2,7.61855768]
[1730820254814,0.40817,2450.6,2450.2,8.02677768]
[1730820255119,41.20817,2450.6,2450.2,7.61855768]
[1730820255323,40.8,2450.6,2450.5,3.2078]
[1730820255513,5.5675,2451.0,2450.5,7.2886]
[1730820255713,0.40811,2450.9,2450.8,3.2078]
[1730820256223,0.40809,2451.1,2450.8,3.2078]
[1730820256427,0.40811,2450.9,2450.8,3.2078]
[1730820256623,40.8,2451.3,2450.8,3.2078]
[1730820256822,0.4081,2451.0,2450.9,3.2078]
[1730820258824,0.4081,2451.0,2450.9,7.2878]
[1730820259216,0.40808,2451.1,2450.9,7.2878]
[1730820259417,40.8,2451.3,2450.9,3.2078]
[1730820259418,0.40809,2451.0,2450.9,3.2078]
[1730820259830,40.8,2451.3,2450.9,7.2878]
[1730820260121,0.40807,2451.2,2450.9,3.6159]
[1730820260424,40.8,2451.3,2450.9,11.69855768]
[1730820260729,0.40807,2451.2,2450.9,4.81885768]
[1730820260926,0.40807,2451.2,2451.1,3.2078]
[1730820262125,40.8,2451.3,2450.8,3.2078]
[1730820262318,40.8,2451.3,2450.5,4.41075768]
[1730820262319,1.02016,2451.2,2450.5,7.61855768]
[1730820262531,0.40808,2451.1,2450.8,3.2078]
[1730820262729,0.40811,2450.9,2450.8,3.2078]
[1730820263931,4.48811,2450.9,2450.8,3.2078]
[1730820264123,4.48811,2450.9,2449.8,5.43146768]
[1730820264124,0.40826,2450.0,2449.9,3.22581]
[1730820264623,41.20826,2450.0,2449.9,3.22581]
[1730820264823,41.20826,2450.0,2449.9,0.01801]
[1730820265628,40.8,2450.0,2449.9,0.01801]
[1730820265929,41.20826,2450.0,2449.9,0.01801]
[1730820266230,41.20826,2450.0,2448.8,1.0485442]
[1730820266231,48.0894,2450.0,2448.8,1.0485442]
[1730820266421,3.2078,2449.6,2449.0,3.2078]
[1730820266627,0.40844,2448.9,2448.5,3.2078]
[1730820266823,0.40845,2448.9,2448.4,2.5721]
[1730820267127,3.2078,2449.3,2448.5,0.4085]
[1730820267330,40.8,2449.2,2448.5,3.2078]
[1730820267623,40.8,2449.2,2448.4,2.5721]
[1730820267830,0.40851,2448.6,2448.5,3.2078]
[1730820268027,0.40851,2448.6,2448.2,10.27805768]
[1730820268228,0.4085,2448.6,2448.2,10.27805768]
[1730820268433,0.40846,2448.9,2448.5,3.2078]
[1730820268825,0.40846,2448.8,2448.5,7.61855768]
[1730820269025,3.2078,2449.0,2448.5,7.61855768]
[1730820269325,40.8,2449.2,2448.5,7.61855768]
[1730820269731,0.40846,2448.9,2448.5,7.61855768]
[1730820269928,40.8,2449.2,2448.5,7.61855768]
[1730820269929,40.8,2449.2,2448.5,3.2078]
[1730820270129,0.40849,2448.7,2448.5,3.2078]
[1730820270326,40.8,2449.2,2448.5,3.2078]
[1730820270630,40.8,2449.2,2448.5,7.61855768]
[1730820270631,0.40846,2448.8,2448.5,7.61855768]
[1730820271324,40.8,2449.2,2448.5,7.61855768]
[1730820271530,0.40845,2448.9,2448.5,7.61855768]
[1730820271929,0.40845,2448.9,2448.6,4.084]
[1730820272327,4.95714,2449.5,2448.8,3.2078]
[1730820272542,4.95714,2449.5,2449.1,3.2078]
[1730820272543,0.4084,2449.2,2449.1,3.2078]
[1730820272735,0.40837,2449.4,2449.1,4.0832]
[1730820272929,0.40837,2449.4,2449.0,3.2078]
[1730820273230,45.75714,2449.5,2449.0,3.2078]
[1730820273231,40.8,2449.5,2449.0,7.291]
[1730820273436,3.2078,2449.7,2449.1,0.4084]
[1730820273631,0.40828,2449.9,2449.3,0.40838]
[1730820273830,0.40834,2449.6,2449.4,3.2078]
[1730820274330,40.8,2449.9,2449.0,8.5644]
[1730820274536,3.2078,2449.7,2449.0,3.2078]
[1730820274738,1.02074,2449.8,2448.6,7.61855768]
[1730820274739,3.2078,2449.4,2448.6,7.61855768]
[1730820274934,3.2078,2449.4,2448.6,3.2078]
[1730820275238,0.40846,2448.9,2448.6,3.2078]
[1730820276136,3.2078,2449.4,2448.6,3.2078]
[1730820276439,0.40846,2448.9,2448.6,3.2078]
[1730820277241,3.2078,2449.4,2448.6,3.2078]
[1730820277438,0.40846,2448.8,2448.6,3.2078]
[1730820277636,0.40846,2448.9,2448.6,3.2078]
[1730820277942,0.40848,2448.7,2448.6,3.2078]
[1730820278428,4.22875,2449.4,2448.6,7.2918]
[1730820278633,4.22875,2449.4,2448.6,3.2078]
[1730820278936,3.2078,2449.4,2448.6,7.61855768]
[1730820279137,0.40842,2449.1,2448.8,0.40845]
[1730820279334,9.14704,2449.6,2448.8,4.0832]
[1730820279642,9.14704,2449.6,2448.6,7.61855768]
[1730820279643,0.40843,2449.0,2448.9,3.2078]
[1730820280042,0.40843,2449.0,2448.9,7.291]
[1730820280339,9.14704,2449.6,2448.9,7.291]
[1730820280542,8.1262,2449.6,2448.9,3.2078]
[1730820280729,0.4084,2449.2,2448.9,3.61623]
[1730820281438,0.40842,2449.1,2448.9,3.61623]
[1730820281631,0.40843,2449.0,2448.9,3.2078]
[1730820281835,1.02099,2449.2,2448.4,3.2078]
[1730820282031,0.40847,2448.8,2448.4,3.2078]
[1730820282239,0.40847,2448.8,2448.5,0.40849]
[1730820282437,0.40843,2449.0,2448.7,0.40847]
[1730820282631,0.40843,2449.0,2448.5,4.41075768]
[1730820282830,3.2078,2449.4,2448.5,4.41075768]
[1730820283041,0.40844,2449.0,2448.7,0.40847]
[1730820283437,0.40843,2449.0,2448.8,0.40845]
[1730820283935,3.2078,2449.4,2448.7,3.2078]
[1730820284139,0.40846,2448.8,2448.7,3.2078]
[1730820284541,1.02095,2449.3,2448.7,7.2918]
[1730820284843,3.2078,2449.4,2448.7,3.61628]
[1730820284844,0.40844,2448.9,2448.7,3.61628]
[1730820285241,0.40844,2449.0,2448.7,7.70028]
[1730820285441,0.40844,2449.0,2448.8,0.40846]
[1730820285644,0.40845,2448.9,2448.7,3.61627]
[1730820285946,0.40845,2448.9,2448.7,3.2078]
[1730820286441,0.40845,2448.9,2448.7,7.2918]
[1730820286634,3.2078,2449.4,2448.7,3.2078]
[1730820286835,0.40846,2448.8,2448.5,3.6163]
[1730820287147,0.40845,2448.9,2448.5,3.2078]
[1730820287335,0.40845,2448.9,2448.3,5.55600186]
[1730820287336,3.2078,2449.4,2448.8,3.2078]
[1730820287553,0.40844,2448.9,2448.8,3.2078]
[1730820287939,0.40847,2448.8,2448.5,3.6163]
[1730820288140,2.45028,2449.3,2448.5,3.2078]
[1730820288442,2.45028,2449.3,2448.5,3.6163]
[1730820288443,0.40848,2448.7,2448.5,3.6163]
[1730820288642,0.40847,2448.8,2448.6,0.40849]
[1730820288843,0.40838,2449.3,2448.5,3.2078]
[1730820289142,0.40848,2448.7,2448.5,3.6163]
[1730820289644,0.40847,2448.8,2448.6,0.40849]
[1730820289843,0.40848,2448.7,2448.5,3.6163]
[1730820290245,0.40839,2449.2,2448.6,0.40848]
[1730820290438,0.40839,2449.2,2448.5,3.2078]
[1730820290439,0.40849,2448.7,2448.5,3.6163]
[1730820290638,0.40849,2448.6,2448.5,3.2078]
[1730820290950,0.40849,2448.6,2448.5,7.2918]
[1730820291246,1.02106,2449.1,2448.5,7.70031]
[1730820291247,0.40849,2448.7,2448.5,7.70031]
[1730820291441,0.40849,2448.7,2448.5,3.61631]
[1730820291644,0.40849,2448.6,2448.5,3.2078]
[1730820292951,0.40848,2448.7,2448.5,7.7003]
[1730820293249,40.8,2448.9,2448.5,3.2078]
[1730820293550,40.8,2448.9,2448.5,7.53919576]
[1730820293551,0.40846,2448.8,2448.5,7.53919576]
[1730820293743,40.8,2448.9,2448.5,7.53919576]
[1730820293744,0.40848,2448.7,2448.5,7.53919576]
[1730820294148,0.40847,2448.8,2448.6,0.40849]
[1730820294450,3.2078,2449.3,2448.7,3.92289576]
[1730820294648,0.40842,2449.1,2448.9,3.61623]
[1730820294951,40.8,2449.5,2448.9,3.2078]
[1730820295149,0.40841,2449.2,2448.9,3.2078]
[1730820295345,40.8,2449.5,2448.9,3.2078]
[1730820295557,0.4084,2449.2,2449.0,0.40842]
[1730820296043,0.4084,2449.2,2449.0,4.49162]
[1730820296242,0.40838,2449.3,2449.1,0.40841]
[1730820296441,40.8,2449.5,2449.0,3.92289576]
[1730820296641,2.7279,2449.9,2449.2,3.2078]
[1730820296847,0.40836,2449.5,2449.2,3.61619]
[1730820297055,0.40837,2449.4,2449.2,3.2078]
[1730820297243,0.40837,2449.4,2449.2,3.61619]
[1730820297448,0.40835,2449.5,2449.3,0.40838]
[1730820297647,0.40834,2449.6,2449.2,3.2078]
[1730820297848,40.8,2449.7,2449.3,0.40837]
[1730820298050,0.40833,2449.6,2449.4,0.40835]
[1730820298353,40.8,2449.7,2449.2,3.2078]
[1730820298556,0.40835,2449.5,2449.2,3.61619]
[1730820298753,0.40833,2449.6,2449.3,0.40836]
[1730820299257,40.8,2449.7,2449.2,3.2078]
[1730820299452,0.40833,2449.6,2449.4,0.40836]
[1730820299651,3.2078,2450.0,2449.2,3.2078]
[1730820299856,1.02054,2450.3,2449.1,5.4117]
[1730820299857,3.2078,2450.3,2449.8,3.2078]
[1730820300152,44.0078,2450.3,2449.9,0.40827]
[1730820300350,44.0078,2450.3,2449.8,3.2078]
[1730820300351,44.0078,2450.3,2450.1,0.40824]
[1730820300548,0.40823,2450.2,2450.0,0.40825]
[1730820300751,0.40823,2450.2,2449.9,3.92289576]
[1730820300957,41.20822,2450.3,2450.1,3.2078]
[1730820301456,40.8,2450.3,2450.1,3.2078]
[1730820301761,41.20822,2450.3,2450.1,3.2078]
[1730820301952,0.40823,2450.2,2450.1,3.2078]
[1730820302160,41.20822,2450.3,2450.1,3.2078]
[1730820302357,40.8,2450.3,2450.2,4.48983]
[1730820302774,3.2078,2450.8,2450.4,0.40819]
[1730820302978,0.40815,2450.7,2450.5,3.92289576]
[1730820303271,40.8,2450.6,2450.5,3.92289576]
[1730820303466,41.20816,2450.6,2450.5,3.92289576]
[1730820303866,4.0808,2450.6,2450.1,3.2078]
[1730820304167,0.40829,2449.8,2449.7,3.92289576]
[1730820304371,40.8,2449.8,2449.7,3.92289576]
[1730820304576,0.40822,2450.3,2450.0,0.40825]
[1730820304878,0.40823,2450.2,2450.1,3.92289576]
[1730820305177,0.40824,2450.2,2450.0,3.2078]
[1730820305676,0.40824,2450.1,2450.0,3.2078]
[1730820306373,40.8,2450.2,2450.0,3.61605]
[1730820306569,40.8,2450.2,2450.1,4.33113576]
[1730820306770,0.40815,2450.7,2450.3,0.40819]
[1730820307082,0.40814,2450.8,2450.5,4.33107576]
[1730820307279,1.59148883,2450.9,2450.5,4.33107576]
[1730820307280,1.59148883,2450.9,2450.7,3.92289576]
[1730820307477,1.99960883,2450.9,2450.7,3.92289576]
[1730820307780,0.40815,2450.7,2450.5,3.92289576]
[1730820307977,5.3484,2451.0,2450.3,3.2078]
[1730820308383,5.3484,2451.0,2450.5,3.92289576]
[1730820309170,5.7565,2451.0,2450.6,3.61595]
[1730820309385,5.3484,2451.0,2450.7,0.40814]
[1730820309679,3.1385,2451.0,2450.6,3.61595]
[1730820309878,2.7304,2451.0,2450.6,3.2078]
[1730820310074,3.1385,2451.0,2450.6,3.2078]
[1730820310275,2.7304,2451.0,2450.6,3.2078]
[1730820310478,0.40812,2450.9,2450.6,3.2078]
[1730820310882,2.7304,2451.0,2450.6,3.2078]
[1730820311071,2.7304,2451.0,2450.7,0.40814]
[1730820311578,3.1385,2451.0,2450.6,3.61595]
[1730820311982,2.7304,2451.0,2450.7,0.40814]
[1730820312180,3.1385,2451.0,2450.6,3.61595]
[1730820312481,2.7304,2451.0,2450.6,3.2078]
[1730820312787,0.40808,2451.1,2450.7,0.40813]
[1730820313181,41.20807,2451.2,2450.9,0.40811]
[1730820313382,41.20807,2451.2,2450.8,3.92289576]
[1730820313383,40.8,2451.2,2450.8,3.92289576]
[1730820313885,40.8,2451.2,2450.9,0.40811]
[1730820313886,0.40807,2451.2,2450.9,0.40811]
[1730820314090,1.59148883,2451.3,2450.8,3.92289576]
[1730820314379,40.8,2451.2,2450.6,5.4898]
[1730820314578,0.40814,2450.7,2450.6,3.2078]
[1730820315283,41.20814,2450.7,2450.6,3.2078]
[1730820315685,0.40817,2450.6,2450.3,0.40821]
[1730820316088,40.8,2450.7,2450.2,9.81769576]
[1730820316277,0.4082,2450.4,2450.2,9.81769576]
[1730820316683,0.40819,2450.5,2450.2,14.30671576]
[1730820316883,40.8,2450.7,2450.2,9.81769576]
[1730820317078,0.40821,2450.3,2450.2,3.2078]
[1730820317574,7.2894,2450.3,2449.7,3.2078]
[1730820317778,0.40829,2449.8,2449.7,3.2078]
[1730820317982,2.3918,2450.3,2449.7,3.2078]
[1730820318475,0.40829,2449.8,2449.7,3.2078]
[1730820318683,0.40828,2449.9,2449.7,3.2078]
[1730820318979,5.7937,2450.3,2449.7,3.2078]
[1730820319385,0.40828,2449.9,2449.7,3.61611]
[1730820319585,0.40828,2449.9,2449.7,3.2078]
[1730820319787,0.40829,2449.8,2449.7,3.2078]
[1730820319984,5.7937,2450.3,2449.7,3.2078]
[1730820320178,5.7937,2450.3,2449.7,3.6161]
[1730820320488,0.40827,2450.0,2449.7,3.6161]
[1730820320694,5.7937,2450.3,2449.7,3.6161]
[1730820320695,0.40823,2450.2,2449.7,3.6161]
[1730820320880,0.40822,2450.3,2450.0,0.40826]
[1730820321082,5.9052,2450.6,2450.0,3.2078]
[1730820321383,0.40818,2450.5,2450.3,0.4082]
[1730820321691,5.9052,2450.6,2450.2,3.92289576]
[1730820321993,0.40821,2450.3,2450.2,3.92289576]
[1730820322387,0.40824,2450.2,2450.0,3.61605]
[1730820322588,0.40823,2450.2,2450.0,3.61605]
[1730820322893,5.9052,2450.6,2450.1,0.40823]
[1730820322894,0.4082,2450.4,2450.1,0.40823]
[1730820323088,6.31336,2450.6,2450.5,3.92289576]
[1730820323781,9.986,2450.6,2450.0,3.2078]
[1730820323988,5.10125,2450.5,2449.6,7.13069576]
[1730820324189,0.40831,2449.7,2449.6,7.13069576]
[1730820324893,6.31905,2450.1,2449.6,7.13069576]
[1730820324894,2.6241,2450.0,2449.6,3.92289576]
[1730820325089,0.4083,2449.8,2449.6,3.92289576]
[1730820325294,2.6241,2450.0,2449.6,3.92289576]
[1730820325489,0.40831,2449.7,2449.6,3.92289576]
[1730820325792,3.2078,2449.8,2449.0,3.92289576]
[1730820325985,3.2078,2449.8,2448.8,0.19920774]
[1730820325986,3.2078,2449.5,2448.7,3.92289576]
[1730820326186,0.40844,2448.9,2448.8,3.2078]
[1730820326586,0.40842,2449.1,2448.7,4.33136576]
[1730820326789,40.8,2449.0,2448.8,3.61625]
[1730820327092,5.3444,2449.4,2449.0,3.92289576]
[1730820327291,0.40839,2449.3,2449.0,3.92289576]
[1730820327492,41.20839,2449.3,2449.0,3.92289576]
[1730820327689,40.8,2449.3,2449.1,0.4084]
[1730820327890,5.75277,2449.4,2449.1,0.4084]
[1730820328092,5.75276,2449.4,2449.3,3.92289576]
[1730820328499,46.1444,2449.4,2449.3,3.92289576]
[1730820328811,0.40833,2449.6,2449.3,3.92289576]
[1730820329094,8.3739,2449.9,2449.3,3.92289576]
[1730820329591,0.40836,2449.4,2449.3,3.92289576]
[1730820330996,0.40835,2449.5,2449.3,3.92289576]
[1730820331194,0.40835,2449.5,2449.3,4.33127576]
[1730820331395,0.40836,2449.4,2449.3,3.92289576]
[1730820331597,40.8,2449.8,2449.3,3.92289576]
[1730820331598,0.40835,2449.5,2449.3,3.92289576]
[1730820331898,13.17318883,2449.9,2449.5,0.40834]
[1730820332195,5.633,2449.9,2449.5,3.92289576]
[1730820332388,1.59148883,2450.2,2450.0,0.40825]
[1730820332590,1.99971883,2450.2,2450.1,3.92289576]
[1730820332891,0.40823,2450.2,2450.1,3.92289576]
[1730820333091,5.348,2450.4,2449.8,3.92289576]
[1730820333299,0.40822,2450.3,2450.1,4.33113576]
[1730820333494,0.40822,2450.3,2450.1,3.92289576]
[1730820333692,5.348,2450.4,2450.1,3.92289576]
[1730820334196,0.40823,2450.2,2450.1,3.92289576]